[Event "Schack-SM 2023: Mastarklassen"]
[Site "Helsingborg Arena, Mellersta Stenbocksgatan 14, Helsingborg, Sweden"]
[Date "2023.07.07"]
[Round "7.1"]
[White "Jogstad, Daniel"]
[Black "Lundin, Jan"]
[Result "0-1"]
[TimeControl "90 minutes for 40 moves + 30 minutes for the rest of games + 30 seconds per move from move one."]
[WhiteTitle "CM"]
[BlackTitle "FM"]
[WhiteElo "2131"]
[BlackElo "2203"]

1. Nf3 {[%clk 01:30:55]} {[%emt 00:00:04]} d5 {[%clk 01:30:37]} {[%emt
00:00:23]} 2. d4 {[%clk 01:31:19]} {[%emt 00:00:07]} e6 {[%clk 01:30:51]}
{[%emt 00:00:16]} 3. g3 {[%clk 01:31:20]} {[%emt 00:00:29]} c5 {[%clk
01:31:07]} {[%emt 00:00:15]} 4. c4 {[%clk 01:27:48]} {[%emt 00:04:02]} Nc6
{[%clk 01:30:47]} {[%emt 00:00:49]} 5. cxd5 {[%clk 01:26:21]} {[%emt 00:01:57]}
exd5 {[%clk 01:31:10]} {[%emt 00:00:07]} 6. Bg2 {[%clk 01:25:43]} {[%emt
00:01:08]} c4 {[%clk 01:31:13]} {[%emt 00:00:28]} 7. O-O {[%clk 01:25:52]}
{[%emt 00:00:21]} Bb4 {[%clk 01:31:38]} {[%emt 00:00:05]} 8. Nc3 {[%clk
01:24:59]} {[%emt 00:01:22]} Nge7 {[%clk 01:31:58]} {[%emt 00:00:09]} 9. e4
{[%clk 01:25:22]} {[%emt 00:00:07]} Bxc3 {[%clk 01:32:13]} {[%emt 00:00:16]} 10.
bxc3 {[%clk 01:25:31]} {[%emt 00:00:21]} O-O {[%clk 01:31:36]} {[%emt
00:01:07]} 11. Re1 {[%clk 01:14:27]} {[%emt 00:11:35]} dxe4 {[%clk 01:31:04]}
{[%emt 00:01:01]} 12. Nd2 {[%clk 01:14:35]} {[%emt 00:00:21]} f5 {[%clk
01:30:58]} {[%emt 00:00:37]} 13. f3 {[%clk 01:08:28]} {[%emt 00:06:37]} Nd5
{[%clk 00:49:41]} {[%emt 00:41:47]} 14. Kh1 {[%clk 00:44:35]} {[%emt 00:24:23]}
Nxc3 {[%clk 00:34:46]} {[%emt 00:15:24]} 15. Qc2 {[%clk 00:43:43]} {[%emt
00:01:23]} exf3 {[%clk 00:34:08]} {[%emt 00:01:08]} 16. Nxf3 {[%clk 00:42:54]}
{[%emt 00:01:18]} Ne4 {[%clk 00:33:31]} {[%emt 00:01:08]} 17. Qxc4+ {[%clk
00:41:13]} {[%emt 00:02:11]} Kh8 {[%clk 00:33:51]} {[%emt 00:00:09]} 18. Rb1
{[%clk 00:29:56]} {[%emt 00:11:48]} Na5 {[%clk 00:28:06]} {[%emt 00:06:15]} 19.
Qf1 {[%clk 00:16:52]} {[%emt 00:13:33]} Be6 {[%clk 00:27:06]} {[%emt 00:01:30]}
20. Nd2 {[%clk 00:16:00]} {[%emt 00:01:23]} Bxa2 {[%clk 00:25:22]} {[%emt
00:02:15]} 21. Rb5 {[%clk 00:08:10]} {[%emt 00:08:19]} Nxd2 {[%clk 00:20:14]}
{[%emt 00:05:37]} 22. Bxd2 {[%clk 00:07:42]} {[%emt 00:00:59]} Bc4 {[%clk
00:20:37]} {[%emt 00:00:08]} 23. Bxa5 {[%clk 00:08:03]} {[%emt 00:00:09]} Bxf1
{[%clk 00:20:58]} {[%emt 00:00:07]} 24. Bxd8 {[%clk 00:08:27]} {[%emt
00:00:07]} Bxb5 {[%clk 00:21:14]} {[%emt 00:00:14]} 25. Be7 {[%clk 00:07:50]}
{[%emt 00:01:06]} Rfe8 {[%clk 00:20:40]} {[%emt 00:01:04]} 26. Re5 {[%clk
00:04:36]} {[%emt 00:03:45]} Rxe7 {[%clk 00:06:13]} {[%emt 00:14:56]} 27. Rxe7
{[%clk 00:04:59]} {[%emt 00:00:07]} Re8 {[%clk 00:06:29]} {[%emt 00:00:15]} 28.
Rxe8+ {[%clk 00:05:18]} {[%emt 00:00:10]} Bxe8 {[%clk 00:06:55]} {[%emt
00:00:05]} 29. Bxb7 {[%clk 00:03:13]} {[%emt 00:02:35]} Kg8 {[%clk 00:07:18]}
{[%emt 00:00:07]} 30. Ba6 {[%clk 00:01:58]} {[%emt 00:01:46]} Bc6+ {[%clk
00:07:11]} {[%emt 00:00:36]} 31. Kg1 {[%clk 00:02:19]} {[%emt 00:00:09]} Bd5
{[%clk 00:07:29]} {[%emt 00:00:12]} 32. Kf2 {[%clk 00:02:40]} {[%emt 00:00:09]}
Kf7 {[%clk 00:07:20]} {[%emt 00:00:39]} 33. Ke3 {[%clk 00:03:05]} {[%emt
00:00:04]} Kf6 {[%clk 00:06:14]} {[%emt 00:01:36]} 34. Kf4 {[%clk 00:03:20]}
{[%emt 00:00:16]} g5+ {[%clk 00:06:31]} {[%emt 00:00:14]} 35. Ke3 {[%clk
00:03:46]} {[%emt 00:00:04]} h6 {[%clk 00:06:46]} {[%emt 00:00:14]} 36. h4
{[%clk 00:03:26]} {[%emt 00:00:50]} f4+ {[%clk 00:05:49]} {[%emt 00:01:26]} 37.
gxf4 {[%clk 00:02:55]} {[%emt 00:01:02]} gxh4 {[%clk 00:06:01]} {[%emt
00:00:17]} 38. Kf2 {[%clk 00:02:17]} {[%emt 00:01:08]} Kf5 {[%clk 00:05:44]}
{[%emt 00:00:47]} 39. Ke3 {[%clk 00:02:22]} {[%emt 00:00:26]} Kg4 {[%clk
00:03:08]} {[%emt 00:03:05]} 40. Kf2 {[%clk 00:00:39]} {[%emt 00:02:14]} Kxf4
{[%clk 00:03:17]} {[%emt 00:00:21]} 0-1

[Event "Schack-SM 2023: Veteran-SM 65+"]
[Site "Helsingborg Arena, Mellersta Stenbocksgatan 14, Helsingborg, Sweden"]
[Date "2023.07.07"]
[Round "7.2"]
[White "Ivarsson, Torbjorn"]
[Black "Hedin, Gunnar"]
[Result "1/2-1/2"]
[TimeControl "90 minutes for 40 moves + 30 minutes for the rest of games + 30 seconds per move from move one."]
[WhiteElo "2073"]
[BlackElo "2093"]

1. e4 {[%clk 01:29:36]} {[%emt 00:01:24]} e6 {[%clk 01:30:53]} {[%emt
00:00:08]} 2. d4 {[%clk 01:29:55]} {[%emt 00:00:11]} d5 {[%clk 01:31:14]}
{[%emt 00:00:09]} 3. exd5 {[%clk 01:30:06]} {[%emt 00:00:19]} exd5 {[%clk
01:31:32]} {[%emt 00:00:11]} 4. Nf3 {[%clk 01:29:16]} {[%emt 00:01:20]} Bd6
{[%clk 01:31:51]} {[%emt 00:00:12]} 5. Bd3 {[%clk 01:29:32]} {[%emt 00:00:13]}
Nc6 {[%clk 01:31:54]} {[%emt 00:00:28]} 6. Nc3 {[%clk 01:25:41]} {[%emt
00:04:21]} Nge7 {[%clk 01:27:53]} {[%emt 00:04:31]} 7. Nb5 {[%clk 01:24:03]}
{[%emt 00:02:08]} Bg4 {[%clk 01:19:04]} {[%emt 00:09:20]} 8. c3 {[%clk
01:21:14]} {[%emt 00:03:18]} a6 {[%clk 01:14:46]} {[%emt 00:04:48]} 9. Nxd6+
{[%clk 01:21:34]} {[%emt 00:00:10]} Qxd6 {[%clk 01:15:13]} {[%emt 00:00:03]} 10.
h3 {[%clk 01:21:36]} {[%emt 00:00:28]} Bf5 {[%clk 01:08:53]} {[%emt 00:06:50]}
11. Be3 {[%clk 01:18:31]} {[%emt 00:03:34]} Bxd3 {[%clk 01:05:21]} {[%emt
00:04:03]} 12. Qxd3 {[%clk 01:18:51]} {[%emt 00:00:08]} Qg6 {[%clk 01:03:33]}
{[%emt 00:02:19]} 13. Qxg6 {[%clk 01:14:41]} {[%emt 00:04:40]} Nxg6 {[%clk
01:03:14]} {[%emt 00:00:49]} 14. Kd2 {[%clk 01:09:22]} {[%emt 00:05:49]} f6
{[%clk 01:02:29]} {[%emt 00:01:15]} 1/2-1/2

[Event "Schack-SM 2023: Veteran-SM 50+"]
[Site "Helsingborg Arena, Mellersta Stenbocksgatan 14, Helsingborg, Sweden"]
[Date "2023.07.07"]
[Round "7.2"]
[White "Karlsson, Ulf"]
[Black "Moborn, Anders"]
[Result "1-0"]
[TimeControl "90 minutes for 40 moves + 30 minutes for the rest of games + 30 seconds per move from move one."]
[WhiteElo "1968"]
[BlackElo "1956"]

1. e4 {[%clk 01:30:53]} {[%emt 00:00:06]} e6 {[%clk 01:30:50]} {[%emt
00:00:11]} 2. d4 {[%clk 01:30:50]} {[%emt 00:00:33]} d5 {[%clk 01:31:04]}
{[%emt 00:00:16]} 3. Nd2 {[%clk 01:31:11]} {[%emt 00:00:09]} Nf6 {[%clk
01:31:07]} {[%emt 00:00:27]} 4. e5 {[%clk 01:31:30]} {[%emt 00:00:10]} Nfd7
{[%clk 01:31:25]} {[%emt 00:00:13]} 5. Bd3 {[%clk 01:31:46]} {[%emt 00:00:13]}
c5 {[%clk 01:31:32]} {[%emt 00:00:23]} 6. c3 {[%clk 01:32:08]} {[%emt
00:00:08]} Nc6 {[%clk 01:31:43]} {[%emt 00:00:20]} 7. Ne2 {[%clk 01:32:02]}
{[%emt 00:00:35]} cxd4 {[%clk 01:30:04]} {[%emt 00:02:10]} 8. cxd4 {[%clk
01:32:23]} {[%emt 00:00:09]} f6 {[%clk 01:30:07]} {[%emt 00:00:27]} 9. exf6
{[%clk 01:31:53]} {[%emt 00:01:00]} Nxf6 {[%clk 01:29:50]} {[%emt 00:00:47]} 10.
O-O {[%clk 01:31:59]} {[%emt 00:00:23]} Bd6 {[%clk 01:29:36]} {[%emt 00:00:44]}
11. Nf3 {[%clk 01:31:56]} {[%emt 00:00:32]} O-O {[%clk 01:29:53]} {[%emt
00:00:15]} 12. Bf4 {[%clk 01:30:09]} {[%emt 00:02:17]} Bxf4 {[%clk 01:27:54]}
{[%emt 00:02:29]} 13. Nxf4 {[%clk 01:30:26]} {[%emt 00:00:13]} Ne4 {[%clk
01:26:37]} {[%emt 00:01:46]} 14. Ne2 {[%clk 01:27:54]} {[%emt 00:03:02]} Rxf3
{[%clk 01:13:35]} {[%emt 00:13:32]} 15. gxf3 {[%clk 01:27:58]} {[%emt
00:00:26]} Ng5 {[%clk 01:10:58]} {[%emt 00:03:07]} 16. Kh1 {[%clk 01:23:55]}
{[%emt 00:04:33]} Nxf3 {[%clk 00:58:28]} {[%emt 00:13:00]} 17. Bxh7+ {[%clk
01:24:02]} {[%emt 00:00:22]} Kh8 {[%clk 00:55:32]} {[%emt 00:03:27]} 18. Ng1
{[%clk 01:24:13]} {[%emt 00:00:19]} Nxh2 {[%clk 00:43:54]} {[%emt 00:12:08]} 19.
Qh5 {[%clk 01:24:20]} {[%emt 00:00:23]} Nxf1 {[%clk 00:43:12]} {[%emt
00:01:12]} 20. Nh3 {[%clk 01:22:38]} {[%emt 00:02:12]} Qc7 {[%clk 00:26:37]}
{[%emt 00:17:06]} 21. Bd3+ {[%clk 01:20:37]} {[%emt 00:02:31]} Kg8 {[%clk
00:26:26]} {[%emt 00:00:41]} 22. Qe8# {[%clk 01:20:57]} {[%emt 00:00:09]} 1-0

[Event "Schack-SM 2023: Sverigemastarklassen"]
[Site "Helsingborg Arena, Mellersta Stenbocksgatan 14, Helsingborg, Sweden"]
[Date "2023.07.07"]
[Round "7.5"]
[White "Sivuk, Vitaly"]
[Black "Blomqvist, Erik"]
[Result "1-0"]
[TimeControl "90 minutes for 40 moves + 30 minutes for the rest of the game + 30 seconds per move from move one."]
[WhiteTitle "GM"]
[BlackTitle "GM"]
[WhiteFideId "14116502"]
[BlackFideId "1709437"]
[WhiteElo "2432"]
[BlackElo "2500"]

1. e4 {[%clk 01:26:25]} {[%emt 00:04:33]} e6 {[%clk 01:30:45]} {[%emt
00:00:15]} 2. d4 {[%clk 01:26:36]} {[%emt 00:00:19]} d5 {[%clk 01:31:08]}
{[%emt 00:00:07]} 3. Nd2 {[%clk 01:26:50]} {[%emt 00:00:15]} c5 {[%clk
01:31:20]} {[%emt 00:00:19]} 4. Ngf3 {[%clk 01:26:51]} {[%emt 00:00:29]} Nc6
{[%clk 01:30:10]} {[%emt 00:01:41]} 5. exd5 {[%clk 01:26:42]} {[%emt 00:00:39]}
exd5 {[%clk 01:30:30]} {[%emt 00:00:10]} 6. Bb5 {[%clk 01:25:44]} {[%emt
00:01:27]} Qe7+ {[%clk 01:30:36]} {[%emt 00:00:25]} 7. Be2 {[%clk 01:24:28]}
{[%emt 00:01:46]} Qc7 {[%clk 01:30:43]} {[%emt 00:00:23]} 8. O-O {[%clk
01:24:37]} {[%emt 00:00:20]} Nf6 {[%clk 01:30:50]} {[%emt 00:00:24]} 9. Re1
{[%clk 01:24:31]} {[%emt 00:00:35]} cxd4 {[%clk 01:29:02]} {[%emt 00:02:19]} 10.
Nb3 {[%clk 01:24:25]} {[%emt 00:00:36]} Bb4 {[%clk 01:29:02]} {[%emt 00:00:30]}
11. Bd2 {[%clk 01:24:27]} {[%emt 00:00:28]} Bxd2 {[%clk 01:29:26]} {[%emt
00:00:07]} 12. Qxd2 {[%clk 01:24:38]} {[%emt 00:00:19]} O-O {[%clk 01:29:49]}
{[%emt 00:00:07]} 13. Nfxd4 {[%clk 01:11:10]} {[%emt 00:13:58]} Bd7 {[%clk
01:30:10]} {[%emt 00:00:09]} 14. Rad1 {[%clk 00:58:23]} {[%emt 00:13:17]} Qb6
{[%clk 01:28:13]} {[%emt 00:02:28]} 15. Nxc6 {[%clk 00:45:10]} {[%emt
00:13:42]} Bxc6 {[%clk 01:28:22]} {[%emt 00:00:21]} 16. Qd4 {[%clk 00:45:15]}
{[%emt 00:00:25]} Qxd4 {[%clk 01:28:03]} {[%emt 00:00:49]} 17. Nxd4 {[%clk
00:45:39]} {[%emt 00:00:06]} Bd7 {[%clk 01:27:52]} {[%emt 00:00:41]} 18. f3
{[%clk 00:45:50]} {[%emt 00:00:19]} h5 {[%clk 01:27:28]} {[%emt 00:00:55]} 19.
h4 {[%clk 00:46:10]} {[%emt 00:00:09]} Rfe8 {[%clk 01:27:08]} {[%emt 00:00:50]}
20. Kf2 {[%clk 00:46:29]} {[%emt 00:00:10]} Kf8 {[%clk 01:26:14]} {[%emt
00:01:25]} 21. c3 {[%clk 00:46:16]} {[%emt 00:00:43]} Re5 {[%clk 01:22:58]}
{[%emt 00:03:46]} 22. Bd3 {[%clk 00:39:18]} {[%emt 00:07:28]} Rae8 {[%clk
01:22:58]} {[%emt 00:00:30]} 23. Rxe5 {[%clk 00:39:38]} {[%emt 00:00:10]} Rxe5
{[%clk 01:23:22]} {[%emt 00:00:05]} 24. Bc2 {[%clk 00:37:39]} {[%emt 00:02:30]}
Ke7 {[%clk 01:21:08]} {[%emt 00:02:44]} 25. Bb3 {[%clk 00:38:00]} {[%emt
00:00:09]} a5 {[%clk 01:20:09]} {[%emt 00:01:29]} 26. a3 {[%clk 00:38:12]}
{[%emt 00:00:18]} Kd6 {[%clk 01:14:37]} {[%emt 00:06:02]} 27. Nc2 {[%clk
00:36:48]} {[%emt 00:01:54]} Kc5 {[%clk 01:14:28]} {[%emt 00:00:40]} 28. Ne3
{[%clk 00:36:10]} {[%emt 00:01:07]} Bc6 {[%clk 01:08:21]} {[%emt 00:06:37]} 29.
Bc2 {[%clk 00:33:26]} {[%emt 00:03:13]} Re8 {[%clk 01:07:25]} {[%emt 00:01:26]}
30. b4+ {[%clk 00:31:25]} {[%emt 00:02:31]} axb4 {[%clk 01:07:39]} {[%emt
00:00:17]} 31. cxb4+ {[%clk 00:28:30]} {[%emt 00:03:25]} Kb6 {[%clk 01:07:36]}
{[%emt 00:00:33]} 32. a4 {[%clk 00:28:34]} {[%emt 00:00:26]} Rc8 {[%clk
01:05:01]} {[%emt 00:03:05]} 33. Bb3 {[%clk 00:26:52]} {[%emt 00:02:12]} Be8
{[%clk 01:04:34]} {[%emt 00:00:57]} 34. Rd4 {[%clk 00:24:37]} {[%emt 00:02:45]}
Rc3 {[%clk 01:03:27]} {[%emt 00:01:37]} 35. Nxd5+ {[%clk 00:23:22]} {[%emt
00:01:45]} Nxd5 {[%clk 01:03:51]} {[%emt 00:00:06]} 36. a5+ {[%clk 00:23:48]}
{[%emt 00:00:05]} Kb5 {[%clk 01:02:16]} {[%emt 00:02:05]} 37. Bxd5 {[%clk
00:21:50]} {[%emt 00:02:27]} Rc7 {[%clk 01:02:21]} {[%emt 00:00:24]} 38. Be4
{[%clk 00:21:11]} {[%emt 00:01:09]} Bd7 {[%clk 01:01:54]} {[%emt 00:00:58]} 39.
Bd3+ {[%clk 00:13:14]} {[%emt 00:08:27]} Ka4 {[%clk 01:02:16]} {[%emt
00:00:09]} 40. Ke3 {[%clk 00:09:57]} {[%emt 00:03:46]} Be6 {[%clk 00:54:40]}
{[%emt 00:08:07]} 41. Kd2 {[%clk 00:08:53]} {[%emt 00:01:34]} g6 {[%clk
00:48:50]} {[%emt 00:06:20]} 42. g4 {[%clk 00:28:28]} {[%emt 00:10:55]} hxg4
{[%clk 01:17:27]} {[%emt 00:01:53]} 43. fxg4 {[%clk 00:28:21]} {[%emt
00:00:36]} Rc8 {[%clk 01:16:37]} {[%emt 00:01:20]} 44. h5 {[%clk 00:24:18]}
{[%emt 00:04:33]} gxh5 {[%clk 01:16:18]} {[%emt 00:00:50]} 45. gxh5 {[%clk
00:24:44]} {[%emt 00:00:04]} Rh8 {[%clk 01:16:29]} {[%emt 00:00:19]} 46. Rh4
{[%clk 00:25:05]} {[%emt 00:00:09]} Rh6 {[%clk 01:16:32]} {[%emt 00:00:27]} 47.
a6 {[%clk 00:19:39]} {[%emt 00:05:57]} bxa6 {[%clk 01:15:17]} {[%emt 00:01:46]}
48. b5+ {[%clk 00:19:21]} {[%emt 00:00:47]} Ka5 {[%clk 01:15:42]} {[%emt
00:00:05]} 49. bxa6 {[%clk 00:19:48]} {[%emt 00:00:03]} Bd5 {[%clk 01:13:20]}
{[%emt 00:02:52]} 50. Be2 {[%clk 00:19:28]} {[%emt 00:00:50]} Kb6 {[%clk
01:12:05]} {[%emt 00:01:46]} 51. Ke3 {[%clk 00:17:45]} {[%emt 00:02:13]} Ka7
{[%clk 01:11:51]} {[%emt 00:00:44]} 52. Rd4 {[%clk 00:15:24]} {[%emt 00:02:50]}
Bc6 {[%clk 01:10:40]} {[%emt 00:01:42]} 53. Kf4 {[%clk 00:14:56]} {[%emt
00:00:57]} f6 {[%clk 01:10:57]} {[%emt 00:00:14]} 54. Rd8 {[%clk 00:14:53]}
{[%emt 00:00:32]} Ba4 {[%clk 01:10:15]} {[%emt 00:01:12]} 55. Rg8 {[%clk
00:15:01]} {[%emt 00:00:22]} Rh7 {[%clk 01:10:01]} {[%emt 00:00:45]} 56. Rf8
{[%clk 00:14:13]} {[%emt 00:01:18]} Rh6 {[%clk 01:10:06]} {[%emt 00:00:25]} 57.
Rf7+ {[%clk 00:14:30]} {[%emt 00:00:13]} Kb6 {[%clk 01:10:22]} {[%emt
00:00:14]} 58. Rb7+ {[%clk 00:14:54]} {[%emt 00:00:05]} 1-0

[Event "Schack-SM 2023: Mastarklassen-elit"]
[Site "Helsingborg Arena, Mellersta Stenbocksgatan 14, Helsingborg, Sweden"]
[Date "2023.07.07"]
[Round "7.4"]
[White "Lindberg, Bengt"]
[Black "Torngren, Gustav"]
[Result "1-0"]
[TimeControl "90 minutes for 40 moves + 30 minutes for the rest of games + 30 seconds per move from move one."]
[WhiteTitle "IM"]
[BlackTitle "FM"]
[WhiteElo "2353"]
[BlackElo "2297"]

1. e4 {[%clk 01:30:53]} {[%emt 00:00:07]} e5 {[%clk 01:30:24]} {[%emt
00:00:36]} 2. Nf3 {[%clk 01:31:16]} {[%emt 00:00:07]} Nc6 {[%clk 01:30:11]}
{[%emt 00:00:44]} 3. Nc3 {[%clk 01:31:36]} {[%emt 00:00:09]} Nf6 {[%clk
01:30:31]} {[%emt 00:00:11]} 4. Bb5 {[%clk 01:31:58]} {[%emt 00:00:08]} Nd4
{[%clk 01:26:23]} {[%emt 00:04:38]} 5. Nxd4 {[%clk 01:31:50]} {[%emt 00:00:38]}
exd4 {[%clk 01:26:43]} {[%emt 00:00:10]} 6. e5 {[%clk 01:32:16]} {[%emt
00:00:04]} dxc3 {[%clk 01:26:41]} {[%emt 00:00:33]} 7. exf6 {[%clk 01:32:38]}
{[%emt 00:00:07]} Qxf6 {[%clk 01:27:05]} {[%emt 00:00:06]} 8. dxc3 {[%clk
01:33:02]} {[%emt 00:00:05]} Bc5 {[%clk 01:12:56]} {[%emt 00:14:39]} 9. O-O
{[%clk 01:31:16]} {[%emt 00:02:16]} O-O {[%clk 01:11:58]} {[%emt 00:01:29]} 10.
Qh5 {[%clk 01:25:44]} {[%emt 00:06:01]} Qb6 {[%clk 00:53:43]} {[%emt 00:18:46]}
11. Bd3 {[%clk 01:20:39]} {[%emt 00:05:30]} g6 {[%clk 00:52:06]} {[%emt
00:02:11]} 12. Qf3 {[%clk 01:14:52]} {[%emt 00:06:17]} Be7 {[%clk 00:28:54]}
{[%emt 00:23:42]} 13. Bh6 {[%clk 01:09:40]} {[%emt 00:05:41]} Rd8 {[%clk
00:28:24]} {[%emt 00:01:01]} 14. Rae1 {[%clk 01:07:47]} {[%emt 00:02:23]} Qf6
{[%clk 00:21:55]} {[%emt 00:07:00]} 15. Qe3 {[%clk 01:06:33]} {[%emt 00:01:43]}
Re8 {[%clk 00:20:21]} {[%emt 00:02:04]} 16. Bg5 {[%clk 01:05:26]} {[%emt
00:01:36]} Qxg5 {[%clk 00:15:49]} {[%emt 00:05:04]} 17. Qxg5 {[%clk 01:05:25]}
{[%emt 00:00:30]} Bxg5 {[%clk 00:16:16]} {[%emt 00:00:03]} 18. Rxe8+ {[%clk
01:05:47]} {[%emt 00:00:08]} Kg7 {[%clk 00:16:45]} 19. f4 {[%clk 00:57:08]}
{[%emt 00:09:08]} Bf6 {[%clk 00:16:21]} {[%emt 00:00:55]} 20. g4 {[%clk
00:51:21]} {[%emt 00:06:16]} h6 {[%clk 00:16:03]} {[%emt 00:00:50]} 21. Bc4
{[%clk 00:49:09]} {[%emt 00:02:41]} Bh4 {[%clk 00:13:41]} {[%emt 00:02:52]} 22.
Kg2 {[%clk 00:49:13]} {[%emt 00:00:25]} b5 {[%clk 00:13:33]} {[%emt 00:00:39]}
23. Kh3 {[%clk 00:41:23]} {[%emt 00:08:18]} Bf6 {[%clk 00:10:32]} {[%emt
00:03:33]} 24. Bxb5 {[%clk 00:35:53]} {[%emt 00:06:00]} c6 {[%clk 00:11:00]}
{[%emt 00:00:02]} 25. Bd3 {[%clk 00:36:11]} {[%emt 00:00:12]} d5 {[%clk
00:11:25]} {[%emt 00:00:05]} 26. Kg3 {[%clk 00:36:22]} {[%emt 00:00:19]} Rb8
{[%clk 00:11:48]} {[%emt 00:00:07]} 27. h4 {[%clk 00:35:04]} {[%emt 00:01:48]}
g5 {[%clk 00:11:28]} {[%emt 00:00:50]} 28. fxg5 {[%clk 00:35:17]} {[%emt
00:00:17]} hxg5 {[%clk 00:11:51]} {[%emt 00:00:08]} 29. h5 {[%clk 00:35:37]}
{[%emt 00:00:10]} 1-0

[Event "Schack-SM 2023: Mastarklassen"]
[Site "Helsingborg Arena, Mellersta Stenbocksgatan 14, Helsingborg, Sweden"]
[Date "2023.07.07"]
[Round "7.2"]
[White "Nygren, David"]
[Black "Cederstam, Carl"]
[Result "0-1"]
[TimeControl "90 minutes for 40 moves + 30 minutes for the rest of games + 30 seconds per move from move one."]
[BlackTitle "FM"]
[WhiteElo "2157"]
[BlackElo "2196"]

1. d4 {[%clk 01:30:54]} {[%emt 00:00:04]} e6 {[%clk 01:30:39]} {[%emt
00:00:22]} 2. Nf3 {[%clk 01:30:37]} {[%emt 00:00:46]} d5 {[%clk 01:30:05]}
{[%emt 00:01:04]} 3. c4 {[%clk 01:30:12]} {[%emt 00:00:56]} Nf6 {[%clk
01:30:13]} {[%emt 00:00:19]} 4. Nc3 {[%clk 01:30:04]} {[%emt 00:00:41]} h6
{[%clk 01:29:06]} {[%emt 00:01:38]} 5. Qc2 {[%clk 01:26:06]} {[%emt 00:04:28]}
c5 {[%clk 01:28:41]} {[%emt 00:00:55]} 6. cxd5 {[%clk 01:23:36]} {[%emt
00:03:00]} exd5 {[%clk 01:28:54]} {[%emt 00:00:09]} 7. e3 {[%clk 01:20:08]}
{[%emt 00:04:05]} a6 {[%clk 01:26:25]} {[%emt 00:02:59]} 8. a3 {[%clk
01:17:05]} {[%emt 00:03:34]} Nc6 {[%clk 01:11:20]} {[%emt 00:15:35]} 9. dxc5
{[%clk 01:10:46]} {[%emt 00:06:48]} Bxc5 {[%clk 01:11:42]} {[%emt 00:00:08]} 10.
b4 {[%clk 01:09:07]} {[%emt 00:02:09]} Ba7 {[%clk 01:10:46]} {[%emt 00:01:26]}
11. Be2 {[%clk 01:01:40]} {[%emt 00:07:58]} O-O {[%clk 01:05:56]} {[%emt
00:05:19]} 12. O-O {[%clk 01:01:54]} {[%emt 00:00:16]} Be6 {[%clk 01:02:42]}
{[%emt 00:03:44]} 13. Bb2 {[%clk 00:58:10]} {[%emt 00:04:14]} Qe7 {[%clk
00:55:22]} {[%emt 00:07:49]} 14. Rad1 {[%clk 00:55:15]} {[%emt 00:03:25]} Rfd8
{[%clk 00:53:37]} {[%emt 00:02:15]} 15. Nd4 {[%clk 00:48:51]} {[%emt 00:06:52]}
Nxd4 {[%clk 00:48:08]} {[%emt 00:06:01]} 16. exd4 {[%clk 00:49:16]} {[%emt
00:00:06]} Bg4 {[%clk 00:47:03]} {[%emt 00:01:35]} 17. Rfe1 {[%clk 00:39:04]}
{[%emt 00:10:42]} Re8 {[%clk 00:39:42]} {[%emt 00:07:52]} 18. Qd2 {[%clk
00:32:57]} {[%emt 00:06:37]} Qd6 {[%clk 00:37:35]} {[%emt 00:02:36]} 19. g3
{[%clk 00:25:37]} {[%emt 00:07:49]} Bxe2 {[%clk 00:31:13]} {[%emt 00:06:53]} 20.
Rxe2 {[%clk 00:22:17]} {[%emt 00:03:49]} Qd7 {[%clk 00:29:27]} {[%emt
00:02:17]} 21. Kg2 {[%clk 00:20:28]} {[%emt 00:02:19]} Rxe2 {[%clk 00:24:58]}
{[%emt 00:04:59]} 22. Qxe2 {[%clk 00:19:49]} {[%emt 00:01:10]} Qf5 {[%clk
00:22:21]} {[%emt 00:03:07]} 23. Rd2 {[%clk 00:17:13]} {[%emt 00:03:05]} Rc8
{[%clk 00:20:02]} {[%emt 00:02:48]} 24. f3 {[%clk 00:11:50]} {[%emt 00:05:54]}
h5 {[%clk 00:15:51]} {[%emt 00:04:41]} 25. Qe5 {[%clk 00:11:02]} {[%emt
00:01:18]} Qg6 {[%clk 00:15:00]} {[%emt 00:01:21]} 26. h4 {[%clk 00:09:33]}
{[%emt 00:02:00]} Rc4 {[%clk 00:10:23]} {[%emt 00:05:06]} 27. Qe3 {[%clk
00:04:58]} {[%emt 00:05:05]} Qf5 {[%clk 00:09:54]} {[%emt 00:00:59]} 28. Na4
{[%clk 00:03:05]} {[%emt 00:02:24]} Bb8 {[%clk 00:09:18]} {[%emt 00:01:05]} 29.
Nb6 {[%clk 00:01:39]} {[%emt 00:01:57]} Rc6 {[%clk 00:09:15]} {[%emt 00:00:32]}
30. Na4 {[%clk 00:02:00]} {[%emt 00:00:09]} b6 {[%clk 00:03:00]} {[%emt
00:06:45]} 31. Qf2 {[%clk 00:01:17]} {[%emt 00:01:12]} Nd7 {[%clk 00:03:02]}
{[%emt 00:00:29]} 32. Re2 {[%clk 00:01:23]} {[%emt 00:00:24]} Rg6 {[%clk
00:03:17]} {[%emt 00:00:15]} 33. Re8+ {[%clk 00:00:50]} {[%emt 00:01:03]} Kh7
{[%clk 00:03:45]} {[%emt 00:00:02]} 34. Re5 {[%clk 00:00:35]} {[%emt 00:00:45]}
Nxe5 {[%clk 00:03:33]} {[%emt 00:00:42]} 35. dxe5 {[%clk 00:01:02]} {[%emt
00:00:03]} Bxe5 {[%clk 00:03:42]} {[%emt 00:00:21]} 36. Bxe5 {[%clk 00:01:25]}
{[%emt 00:00:07]} Qxe5 {[%clk 00:04:07]} {[%emt 00:00:05]} 37. Nxb6 {[%clk
00:01:29]} {[%emt 00:00:26]} f5 {[%clk 00:02:27]} {[%emt 00:02:10]} 38. Nd7
{[%clk 00:01:42]} {[%emt 00:00:17]} Qe7 {[%clk 00:02:12]} {[%emt 00:00:42]} 39.
Nc5 {[%clk 00:01:22]} {[%emt 00:00:53]} f4 {[%clk 00:02:10]} {[%emt 00:00:32]}
40. Qc2 {[%clk 00:01:27]} {[%emt 00:00:26]} fxg3 {[%clk 00:02:30]} {[%emt
00:00:09]} 41. Nd3 {[%clk 00:27:51]} {[%emt 00:04:05]} Qxh4 {[%clk 00:32:19]}
{[%emt 00:00:42]} 42. Kg1 {[%clk 00:28:14]} {[%emt 00:00:06]} g2 {[%clk
00:32:23]} {[%emt 00:00:27]} 0-1